fUST/lending_fUST_20250826
["ID","MTS","AMOUNT","RATE_DAILY","PERIOD"]
[381379296,1756170641719,-1309.54,0.00041095,30]
[381379298,1756170641728,-480.0,0.00041095,30]
[381379300,1756170641738,-2565.04,0.00041095,30]
[381379302,1756170641747,-480.0,0.00041095,30]
[381379304,1756170641756,-480.0,0.00041095,30]
[381379306,1756170641765,-480.0,0.00041095,30]
[381379308,1756170641775,-1833.89,0.00041095,30]
[381379310,1756170641784,-480.0,0.00041095,30]
[381379312,1756170641793,-480.0,0.00041095,30]
[381379314,1756170641802,-480.0,0.00041095,30]
[381379316,1756170641811,-480.0,0.00041095,30]
[381379318,1756170641820,-813.47,0.00041095,30]
[381379320,1756170641830,-398.77503722,0.00041095,30]
[381379324,1756170641850,-273.225,0.00041095,30]
[381379345,1756170642045,-130.29996278,0.00041095,30]
[381379347,1756170642055,-480.0,0.00041095,30]
[381379349,1756170642064,-480.0,0.00041095,30]
[381379351,1756170642074,-480.0,0.00041095,30]
[381379353,1756170642083,-640.46,0.00041095,30]
[381379355,1756170642092,-480.0,0.00041095,30]
[381379357,1756170642102,-480.0,0.00041095,30]
[381379359,1756170642111,-480.00000001,0.00041095,30]
[381379361,1756170642121,-480.0,0.00041095,30]
[381379364,1756170642131,-480.0,0.00041095,30]
[381379365,1756170642139,-480.0,0.00041095,30]
[381379367,1756170642149,-542.1,0.00041095,30]
[381379369,1756170642158,-1843.83,0.00041095,30]
[381379371,1756170642167,-480.0,0.00041095,30]
[381379373,1756170642176,-2174.7,0.00041095,30]
[381379375,1756170642188,-480.0,0.00041095,30]
[381379377,1756170642197,-100.52708651,0.00041095,30]
[381379425,1756170642839,-819.23291349,0.00041095,30]
[381379426,1756170642848,-58.80292473,0.00041095,30]
[381379427,1756170643002,-421.19707527,0.00041095,30]
[381379429,1756170643012,-1048.48,0.00041095,30]
[381379430,1756170643021,-480.0,0.00041095,30]
[381379431,1756170643030,-480.0,0.00041095,30]
[381379432,1756170643040,-480.0,0.00041095,30]
[381379433,1756170643050,-771.19,0.00041095,30]
[381379434,1756170643059,-480.0,0.00041095,30]
[381379435,1756170643069,-480.0,0.00041095,30]
[381379436,1756170643078,-480.0,0.00041095,30]
[381379437,1756170643087,-1827.78,0.00041095,30]
[381379438,1756170643096,-480.0,0.00041095,30]
[381379439,1756170643105,-480.0,0.00041095,30]
[381379440,1756170643114,-2466.24,0.00041095,30]
[381379441,1756170643124,-638.27,0.00041095,30]
[381379442,1756170643134,-609.62165766,0.00041095,30]
[381379443,1756170643143,-480.0,0.00041095,30]
[381379444,1756170643152,-590.79,0.00041095,30]
[381379445,1756170643162,-532.09,0.00041095,30]
[381379446,1756170643171,-480.0,0.00041095,30]
[381379447,1756170643182,-480.0,0.00041095,30]
[381379448,1756170643191,-480.0,0.00041095,30]
[381379449,1756170643200,-480.0,0.00041095,30]
[381379450,1756170643209,-480.0,0.00041095,30]
[381379451,1756170643218,-480.0,0.00041095,30]
[381379452,1756170643228,-480.0,0.00041095,30]
[381379453,1756170643237,-480.0,0.00041095,30]
[381379454,1756170643246,-687.45,0.00041095,30]
[381379455,1756170643255,-480.0,0.00041095,30]
[381379456,1756170643264,-480.0,0.00041095,30]
[381379457,1756170643274,-480.0,0.00041095,30]
[381379458,1756170643283,-1980.78,0.00041095,30]
[381379459,1756170643292,-832.33,0.00041095,30]
[381379460,1756170643301,-487.08,0.00041095,30]
[381379461,1756170643310,-480.0,0.00041095,30]
[381379462,1756170643319,-480.0,0.00041095,30]
[381379463,1756170643328,-556.45,0.00041095,20]
[381379464,1756170643337,-499.21,0.00041095,30]
[381379465,1756170643347,-480.0,0.00041095,30]
[381379466,1756170643357,-411.13383182,0.00041095,30]
[381379467,1756170643366,-480.0,0.00041095,30]
[381379468,1756170643376,-480.0,0.00041095,30]
[381379469,1756170643385,-592.78,0.00041095,30]
[381379470,1756170643394,-480.0,0.00041095,30]
[381379471,1756170643403,-480.0,0.00041095,30]
[381379472,1756170643412,-577.95,0.00041095,30]
[381379473,1756170643421,-480.0,0.00041095,30]
[381379474,1756170643432,-480.0,0.00041095,30]
[381379475,1756170643441,-536.35,0.00041095,30]
[381379476,1756170643450,-480.0,0.00041095,30]
[381379477,1756170643459,-933.06,0.00041095,30]
[381379478,1756170643468,-296.52973275,0.00041095,30]
[381379479,1756170643478,-598.29175126,0.00041095,30]
[381379480,1756170643487,-480.0,0.00041095,30]
[381379481,1756170643496,-731.77,0.00041095,30]
[381379482,1756170643505,-480.0,0.00041095,30]
[381379483,1756170643514,-480.0,0.00041095,30]
[381379484,1756170643523,-506.88,0.00041095,30]
[381379485,1756170643532,-480.0,0.00041095,30]
[381379486,1756170643542,-480.0,0.00041095,30]
[381379487,1756170643551,-627.54,0.00041095,30]
[381379488,1756170643561,-480.0,0.00041095,30]
[381379489,1756170643570,-498.31,0.00041095,30]
[381379490,1756170643579,-480.0,0.00041095,30]
[381379491,1756170643589,-480.0,0.00041095,30]
[381379492,1756170643599,-742.79,0.00041095,30]
[381379494,1756170643611,-480.0,0.00041095,30]
[381379496,1756170643631,-2863.39,0.00041095,30]
[381379498,1756170643646,-480.0,0.00041095,30]
[381379500,1756170643656,-480.0,0.00041095,30]
[381379502,1756170643666,-480.0,0.00041095,30]
[381379504,1756170643678,-3490.77,0.00041095,30]
[381379506,1756170643691,-480.0,0.00041095,5]
[381379508,1756170643701,-248.63444428,0.00041095,30]
[381379510,1756170643711,-614.23377415,0.00041095,30]
[381379512,1756170643721,-784.92,0.00041095,30]
[381379514,1756170643731,-1712.62,0.00041095,30]
[381379516,1756170643742,-480.0,0.00041095,30]
[381379518,1756170643752,-2547.58,0.00041095,30]
[381379520,1756170643761,-480.0,0.00041095,30]
[381379522,1756170643771,-750.18,0.00041095,30]
[381379524,1756170643781,-1139.81,0.00041095,30]
[381379525,1756170643792,-2599.87,0.00041095,30]
[381379527,1756170643801,-151.0,0.00041095,30]
[381379530,1756170643811,-713.62,0.00041095,30]
[381379531,1756170643820,-480.0,0.00041095,30]
[381379533,1756170643830,-1556.52,0.00041095,30]
[381379535,1756170643839,-480.0,0.00041095,30]
[381379537,1756170643849,-151.0,0.00041095,7]
[381379539,1756170643858,-151.0,0.00041095,7]
[381379541,1756170643868,-480.0,0.00041095,30]
[381379543,1756170643877,-480.0,0.00041095,30]
[381379545,1756170643887,-225.93,0.00041095,30]
[381379547,1756170643897,-2100.63,0.00041095,30]
[381379549,1756170643907,-151.0,0.00041095,7]
[381379551,1756170643916,-278.0907448,0.00041095,7]
[381379553,1756170643925,-828.15,0.00041095,30]
[381379555,1756170643936,-151.0,0.00041095,7]
[381379557,1756170643945,-151.0,0.00041095,7]
[381379559,1756170643955,-1000.0,0.00041095,30]
[381379561,1756170643964,-539.2,0.00041095,30]
[381379563,1756170643973,-480.0,0.00041095,30]
[381379565,1756170643983,-480.0,0.00041095,30]
[381379567,1756170643992,-480.0,0.00041095,30]
[381379569,1756170644001,-536.21,0.00041095,30]
[381379571,1756170644010,-698.98,0.00041095,30]
[381379573,1756170644019,-480.0,0.00041095,30]
[381379575,1756170644029,-480.0,0.00041095,30]
[381379577,1756170644038,-1756.84,0.00041095,30]
[381379579,1756170644047,-480.0,0.00041095,30]
[381379581,1756170644056,-592.58,0.00041095,30]
[381379583,1756170644065,-480.0,0.00041095,30]
[381379585,1756170644075,-679.4,0.00041095,30]
[381379587,1756170644085,-480.0,0.00041095,30]
[381379589,1756170644095,-563.09,0.00041095,30]
[381379591,1756170644104,-480.0,0.00041095,30]
[381379593,1756170644113,-2733.52,0.00041095,30]
[381379595,1756170644123,-587.25,0.00041095,30]
[381379597,1756170644133,-480.0,0.00041095,30]
[381379599,1756170644143,-714.6,0.00041095,30]
[381379601,1756170644152,-480.0,0.00041095,30]
[381379603,1756170644162,-938.37,0.00041095,30]
[381379605,1756170644171,-480.0,0.00041095,30]
[381379607,1756170644180,-480.0,0.00041095,30]
[381379609,1756170644191,-480.0,0.00041095,30]
[381379611,1756170644200,-480.0,0.00041095,30]
[381379613,1756170644209,-480.0,0.00041095,30]
[381379615,1756170644218,-480.0,0.00041095,30]
[381379617,1756170644228,-441.13433417,0.00041095,30]
[381379619,1756170644237,-480.0,0.00041095,30]
[381379621,1756170644246,-480.0,0.00041095,30]
[381379623,1756170644255,-480.0,0.00041095,30]
[381379625,1756170644264,-480.0,0.00041095,30]
[381379627,1756170644274,-63.1954377,0.00041095,30]
[381379710,1756170646013,-217.12848614,0.00037198,2]
[381379711,1756170646023,-416.8045623,0.00041095,30]
[381379712,1756170646035,-480.0,0.00041095,30]
[381379713,1756170646045,-500.0,0.00041095,30]
[381379714,1756170646056,-480.0,0.00041095,30]
[381379715,1756170646066,-480.0,0.00041095,30]
[381379716,1756170646075,-480.0,0.00041095,30]
[381379717,1756170646087,-836.83,0.00041095,30]
[381379718,1756170646096,-810.74,0.00041095,30]
[381379719,1756170646105,-536.25,0.00041095,30]
[381379720,1756170646115,-500.0,0.00041095,120]
[381379721,1756170646125,-480.0,0.00041095,30]
[381379722,1756170646135,-548.40195193,0.00041095,30]
[381379812,1756170882058,-182.45,0.00029136,15]
[381379813,1756170882080,-61.98748561,0.00029136,15]
[381379814,1756170883613,-93.85251439,0.00029136,15]
[381379815,1756170883635,-182.4602205,0.00029236,15]
[381379816,1756170883658,-155.84,0.00029236,15]
[381379817,1756170883682,-155.84,0.00029336,15]
[381379818,1756170883704,-155.84,0.00029436,15]
[381379819,1756170883728,-155.84,0.00029536,15]
[381379820,1756170883751,-90.22404376,0.00029636,15]
[381379821,1756170886837,-65.61595624,0.00029636,15]
[381379822,1756170886858,-155.89584236,0.00029736,15]
[381379823,1756170886878,-270.09977173,0.00029991,2]
[381379824,1756170990095,-199.0,0.00031,60]
[381379825,1756170993521,-309.122575,0.00031,60]
[381379826,1756170996347,-151.0,0.000309,60]
[381379827,1756170999071,-48.0,0.000309,60]
[381379828,1756170999091,-452.0,0.00031,60]
[381379829,1756171002201,-999.09190184,0.00031,60]
[381379830,1756171004564,-199.0,0.000308,60]
[381379831,1756171004587,-813.0338277,0.00031,60]
[381379832,1756171009356,-500.0,0.00031,60]
[381379833,1756171010934,-988.87427046,0.00031,60]
[381379834,1756171013305,-199.0,0.000309,60]
[381379835,1756171013327,-301.0,0.00031,60]
[381379836,1756171015273,4000.0,0.000281,2]
[381379837,1756171018351,-500.0,0.00031,60]
[381379838,1756171020175,-500.0,0.00031,60]
[381379839,1756171023033,-479.31687073,0.00031,60]
[381379840,1756171024451,-591.73043426,0.00031,60]
[381379841,1756171027628,-171.58,0.00031,60]
[381379842,1756171029139,-328.42,0.00031,60]
[381379843,1756171031357,-500.0,0.00031,60]
[381379844,1756171031675,1500.0,0.000281,2]
[381379845,1756171034589,-500.0,0.00031,60]
[381379846,1756171036307,-176.26,0.000309,60]
[381379847,1756171038481,-22.74,0.000309,60]
[381379848,1756171038502,-471.90250819,0.00031,60]
[381379849,1756171041141,-199.0,0.000308,60]
[381379850,1756171041164,-359.69,0.00031,60]
[381379851,1756171044269,-1069.55655386,0.00031,60]
[381379852,1756171049248,800.0,0.00031914,49]
[381379855,1756171615124,-277.32128571,0.00036709,33]
[381379858,1756171635082,-355.21725619,0.00036709,33]
[381379859,1756171635102,-1374.13223252,0.00036709,2]
[381379861,1756171763092,-400.0,0.00031901,2]
[381379862,1756171763113,-1374.05,0.00031902,10]
[381379863,1756171763133,-473.82710185,0.00031911,2]
[381379864,1756171763161,-500.0,0.00031911,2]
[381379865,1756171763180,-500.0,0.00031911,2]
[381379866,1756171763201,-500.0,0.00031911,2]
[381379867,1756171763221,-397.56473449,0.00031911,2]
[381379868,1756171763240,-500.0,0.00031911,2]
[381379869,1756171763260,-500.0,0.00031911,2]
[381379870,1756171763279,-500.0,0.00031911,2]
[381379871,1756171763299,-171.58,0.00031911,2]
[381379872,1756171763319,-591.73043426,0.00031911,2]
[381379873,1756171763339,-242.87691068,0.00031911,2]
[381379874,1756171763359,-1640.15789128,0.00031912,2]
[381379875,1756171814009,153.0,0.00031,120]
[381379889,1756171832117,-199.0,0.00031802,10]
[381379890,1756171832126,-169.60766084,0.00031802,2]
[381379891,1756171832138,-363.19290781,0.00031812,2]
[381379892,1756171832156,-241.59152436,0.00031812,2]
[381379893,1756171832166,-401.3621039,0.00031902,10]
[381379932,1756171838223,-199.0,0.00031802,10]
[381379934,1756171838234,-851.84,0.00031902,10]
[381379936,1756171838244,-37059.81059895,0.00031912,20]
[381380574,1756171846230,-7979.249453,0.00031912,20]
[381380586,1756171846429,-9778.76703033,0.00031912,20]
[381380589,1756171846440,-4601.16717591,0.00031912,20]
[381380697,1756171849987,199.0,0.00026749,20]
[381382087,1756171982183,3264.555914,0.00031911,120]
[381382088,1756171985881,234.39858517,0.000281,2]
[381382089,1756172050364,-467.95949257,0.0003,2]
[381382090,1756172053795,-638.51,0.0003,2]
[381382091,1756172056472,-155.53050743,0.0003,2]
[381382092,1756172127758,-356.87,0.00030878,2]
[381382093,1756172130700,-466.93,0.00030878,2]
[381382094,1756172132301,-151.0,0.00030878,2]
[381382095,1756172135656,-493.62,0.00030878,2]
[381382096,1756172145030,-247.83,0.00030878,2]
[381382097,1756172148792,529.05847148,0.000281,7]
[381382098,1756172149502,-43.5381779,0.00030878,2]
[381382100,1756172827171,-365.52531499,0.00031803,2]
[381382112,1756172839104,-203.31640669,0.00031704,110]
[381382113,1756172839127,-34.47468501,0.00031803,2]
[381382114,1756172839150,-27.59105156,0.00031803,3]
[381382115,1756172847145,-1319.54237266,0.00031803,3]
[381382116,1756172851094,-152.29812991,0.00031803,3]
[381382117,1756172966132,-100.56844587,0.00031803,3]
[381382118,1756172966153,-173.71914286,0.00031804,2]
[381382119,1756172966175,-9957.66562232,0.00031804,2]
[381382120,1756172966201,-216.04034502,0.00031809,2]
[381382121,1756172966222,-215.12983727,0.00031811,30]
[381382122,1756172966244,-1236.16,0.00031892,10]
[381382123,1756172966265,-6319.64652213,0.00031892,2]
[381382164,1756173032351,-1604.59714064,0.00031802,2]
[381382728,1756173038226,-5033.84660758,0.00031802,2]
[381382729,1756173038236,-199.0,0.00031802,30]
[381382730,1756173038245,-33560.57103245,0.00031892,2]
[381382732,1756173038255,-768.95,0.00031894,3]
[381382734,1756173038267,-939.4,0.000319,60]
[381382736,1756173038276,-333.68879784,0.00031901,2]
[381382738,1756173038286,-500.0,0.00031901,2]
[381382740,1756173038296,-500.0,0.00031901,2]
[381382742,1756173038307,-500.0,0.00031901,2]
[381382744,1756173038317,-500.0,0.00031901,2]
[381382746,1756173038326,-182.21133695,0.00031901,2]
[381382748,1756173038335,-500.0,0.00031901,2]
[381382750,1756173038345,-1675.647972,0.00031902,2]
[381382752,1756173038355,-3205.64640544,0.00031902,2]
[381382754,1756173038364,-606025.94972031,0.00031902,20]
[381382757,1756173038375,-165521.78920828,0.00031902,20]
[381382969,1756173040417,-1150.18480862,0.00031902,20]
[381383442,1756173087539,529.29072822,0.000281,7]
[381383443,1756173138121,417.15472785,0.000281,7]
[381383444,1756173285049,198.0568604,0.00027196,2]
[381383445,1756173293097,-296.29301568,0.00030855,2]
[381383446,1756173296652,-187.727687,0.00030855,2]
[381383447,1756173301815,-370.94480182,0.00030855,2]
[381383448,1756173305458,-468.97847895,0.00030855,2]
[381383449,1756173314238,-300.0,0.00030855,2]
[381383450,1756173317353,-290.04328551,0.00030855,2]
[381383451,1756173321793,-179.41789494,0.00030855,2]
[381383452,1756173475637,2526.0,0.000281,120]
[381383454,1756174028110,-169.77340523,0.00031652,2]
[381383455,1756174028135,-169.77340523,0.00031746,2]
[381383456,1756174028162,-10.31640913,0.00031751,2]
[381383457,1756174035134,-389.68359087,0.00031751,2]
[381383458,1756174035155,-591.0,0.00031751,3]
[381383459,1756174035176,-1006.74107434,0.00031752,2]
[381383460,1756174035203,-126.70040724,0.00031752,2]
[381383461,1756174035226,-248.55924805,0.00031752,2]
[381383462,1756174038084,-737.89993186,0.00031752,2]
[381383522,1756174232730,-906.75318528,0.00031752,2]
[381383524,1756174232739,-6331.28701781,0.00031752,2]
[381383526,1756174232748,-303.0,0.00031789,3]
[381383528,1756174232758,-400.0,0.00031789,2]
[381383530,1756174232767,-1227.0,0.00031789,3]
[381383532,1756174232777,-12701.40788335,0.0003179,2]
[381383534,1756174232786,-686.58,0.00031846,3]
[381383536,1756174232796,-15682.40890895,0.00031851,2]
[381383538,1756174232805,-500.0,0.00031851,2]
[381383540,1756174232815,-450.69726683,0.00031851,2]
[381383542,1756174232825,-284.84254098,0.00031851,2]
[381383544,1756174232835,-500.0,0.00031851,2]
[381383546,1756174232845,-500.0,0.00031851,2]
[381383548,1756174232856,-500.0,0.00031851,2]
[381383550,1756174232868,-500.0,0.00031851,2]
[381383552,1756174232886,-500.0,0.00031851,2]
[381383554,1756174232896,-523.92778022,0.00031851,2]
[381383556,1756174232907,-403.58424386,0.00031851,2]
[381383558,1756174232918,-12523.85443846,0.00031852,20]
[381383560,1756174232930,-62405.00410662,0.00031852,20]
[381383990,1756174238634,-220.8249628,0.00031842,10]
[381383991,1756174238646,-1680.1550372,0.00031842,10]
[381383992,1756174238655,-10791.29293029,0.00031852,20]
[381383993,1756174238666,-531.9799992,0.00031852,20]
[381383994,1756174238677,-791.15330908,0.00031852,20]
[381383995,1756174238688,-1834.44811833,0.00031852,20]
[381383996,1756174238699,-485.47782603,0.00031852,20]
[381383997,1756174238710,-650.64,0.00031852,20]
[381383998,1756174238757,-457955.31623363,0.00031852,20]
[381383999,1756174238766,-5978.59844974,0.00031852,7]
[381384000,1756174238775,-49847.13800476,0.00031852,2]
[381384001,1756174238784,-1189.66571012,0.00031852,2]
[381384002,1756174238793,-576.97797581,0.00031852,5]
[381384003,1756174238802,-6131.28936142,0.00031852,30]
[381384004,1756174238812,-17822.12836044,0.00031852,2]
[381384005,1756174238821,-150.0,0.00031852,30]
[381384006,1756174238831,-1007.0,0.00031855,60]
[381384007,1756174238840,-160.0,0.00031861,2]
[381384008,1756174238849,-160.0,0.00031873,2]
[381384009,1756174238859,-376.30788339,0.00031888,2]
[381384010,1756174238868,-417.15472785,0.00031888,2]
[381384011,1756174238878,-160.0,0.00031888,2]
[381384012,1756174238888,-160.0,0.00031888,2]
[381384013,1756174238897,-194.930051,0.00031892,2]
[381384014,1756174238907,-9937.81,0.000319,2]
[381384015,1756174238917,-564.49851929,0.000319,5]
[381384016,1756174238926,-502.46455858,0.000319,5]
[381384017,1756174238936,-500.91655306,0.000319,5]
[381384018,1756174238945,-587.34314269,0.000319,5]
[381384019,1756174238954,-501.78666609,0.000319,5]
[381384020,1756174238964,-508.35248554,0.000319,5]
[381384021,1756174238973,-516.51650356,0.000319,5]
[381384022,1756174238984,-500.0,0.000319,5]
[381384023,1756174238993,-502.15933556,0.000319,5]
[381384024,1756174239003,-500.0,0.000319,5]
[381384025,1756174239014,-500.0,0.000319,5]
[381384026,1756174239023,-464.55093652,0.000319,5]
[381384027,1756174239033,-151.0,0.00031902,2]
[381384028,1756174239043,-160.0,0.00031903,2]
[381384029,1756174239052,-15247.12257679,0.00031911,7]
[381384030,1756174239062,-674.06064946,0.00031911,2]
[381384031,1756174239071,-160.0,0.00031911,7]
[381384032,1756174239081,-845.07960918,0.00031911,7]
[381384033,1756174239090,-501.50429243,0.00031973,5]
[381384034,1756174239100,-245.92230005,0.0003199,2]
[381384035,1756174239109,-15914.37,0.00032,7]
[381384036,1756174239118,-186.23,0.00032,7]
[381384037,1756174239128,-1498.66,0.00032,7]
[381384038,1756174239138,-374.97880407,0.00032,6]
[381384039,1756174239147,-300.0,0.0003243,20]
[381384040,1756174239156,-300.0,0.0003243,20]
[381384041,1756174239166,-300.0,0.0003243,20]
[381384042,1756174239175,-1000.0,0.00032448,5]
[381384043,1756174239184,-497.54389854,0.00032448,5]
[381384044,1756174239193,-516.31478172,0.00032448,5]
[381384045,1756174239203,-300.0,0.00032529,20]
[381384046,1756174239213,-300.0,0.00032529,20]
[381384047,1756174239222,-300.0,0.00032549,20]
[381384048,1756174239232,-22305.3584883,0.00032866,2]
[381384049,1756174239241,-219.96809641,0.00032866,2]
[381384050,1756174239251,-1339.37,0.00032876,120]
[381384051,1756174239261,-1018.11137471,0.00032996,5]
[381384052,1756174239271,-906.75318524,0.00033691,2]
[381384053,1756174239282,-234.0,0.00034198,2]
[381384054,1756174239291,-1339.37,0.0003452,120]
[381384055,1756174239301,-906.75318524,0.0003563,2]
[381384056,1756174239311,-153.285011,0.00036091,2]
[381384057,1756174239321,-1339.37,0.00036164,120]
[381384058,1756174239330,-6331.28701781,0.00036374,2]
[381384059,1756174239339,-160.0,0.00036378,3]
[381384060,1756174239349,-300.0,0.00036609,2]
[381384061,1756174239358,-452.0,0.00036646,7]
[381384062,1756174239600,-153.285011,0.00036721,2]
[381384063,1756174239610,-168.0,0.0003677,2]
[381384064,1756174239622,-168.0,0.00036931,2]
[381384065,1756174239632,-22305.3584883,0.0003699,3]
[381384066,1756174239642,-219.96809641,0.0003699,3]
[381384067,1756174239652,-845.07960918,0.0003699,3]
[381384068,1756174239662,-9937.81,0.00037,14]
[381384069,1756174239672,-152.737386,0.00037,30]
[381384070,1756174239682,-153.081931,0.00037,30]
[381384071,1756174239692,-152.126374,0.00037,30]
[381384072,1756174239701,-168.0,0.00037222,2]
[381384073,1756174239711,-168.0,0.000373,2]
[381384074,1756174239721,-500.0,0.00037336,5]
[381384075,1756174239732,-168.0,0.00037376,2]
[381384076,1756174239743,-452.0,0.00037438,2]
[381384077,1756174239752,-906.75318524,0.00037568,2]
[381384078,1756174239763,-168.0,0.0003764,2]
[381384079,1756174239772,-1339.37,0.00037808,120]
[381384080,1756174239781,-168.0,0.00037816,2]
[381384081,1756174239790,-286.3598643,0.00038082,30]
[381384082,1756174239801,-153.285011,0.00038266,20]
[381384083,1756174239810,-168.0,0.00038273,120]
[381384084,1756174239819,-500.0,0.00038355,7]
[381384085,1756174239829,-500.0,0.00038356,14]
[381384086,1756174239839,-168.0,0.00038457,7]
[381384087,1756174239848,-2156.0,0.00038574,2]
[381384088,1756174239857,-160.0,0.00038585,3]
[381384089,1756174239866,-153.0,0.000386,120]
[381384090,1756174239876,-500.0,0.0003863,14]
[381384091,1756174239886,-200.0,0.00038856,120]
[381384092,1756174239895,-168.0,0.00038863,7]
[381384093,1756174239905,-500.0,0.00038904,14]
[381384094,1756174239914,-200.0,0.00039091,120]
[381384095,1756174239924,-9937.81,0.000391,14]
[381384096,1756174239933,-154.122369,0.000391,30]
[381384097,1756174239943,-151.0,0.000391,30]
[381384098,1756174239952,-151.0,0.000391,30]
[381384099,1756174239962,-151.0,0.000391,30]
[381384100,1756174239972,-152.471752,0.000391,30]
[381384101,1756174239981,-151.0,0.000391,30]
[381384102,1756174239991,-151.509488,0.000391,30]
[381384103,1756174240000,-151.670364,0.000391,30]
[381384104,1756174240009,-151.0,0.000391,30]
[381384105,1756174240020,-151.0,0.000391,30]
[381384106,1756174240030,-194.519437,0.000391,30]
[381384107,1756174240039,-161.787797,0.000391,30]
[381384108,1756174240049,-151.0,0.000391,30]
[381384109,1756174240058,-151.0,0.000391,30]
[381384110,1756174240067,-500.0,0.00039177,7]
[381384111,1756174240077,-151.0,0.00039178,30]
[381384112,1756174240087,-152.966135,0.00039178,30]
[381384113,1756174240096,-155.4248,0.00039178,30]
[381384114,1756174240106,-168.204675,0.00039178,30]
[381384115,1756174240115,-151.0,0.00039178,30]
[381384116,1756174240124,-153.598615,0.00039178,30]
[381384117,1756174240135,-151.0,0.00039178,30]
[381384118,1756174240145,-274.453044,0.00039178,30]
[381384119,1756174240155,-160.0,0.00039178,30]
[381384120,1756174240164,-417.15472785,0.00039178,30]
[381384121,1756174240174,-845.07960918,0.00039178,30]
[381384122,1756174240185,-473.95826228,0.00039178,14]
[381384123,1756174240195,-200.0,0.00039182,120]
[381384124,1756174240205,-151.0,0.00039182,30]
[381384125,1756174240214,-160.88315,0.00039182,30]
[381384126,1756174240224,-151.785022,0.00039182,30]
[381384127,1756174240234,-168.710541,0.00039182,30]
[381384128,1756174240243,-155.500925,0.00039182,30]
[381384129,1756174240253,-152.207751,0.00039182,30]
[381384130,1756174240263,-183.374055,0.00039182,30]
[381384131,1756174240273,-156.137309,0.00039182,30]
[381384132,1756174240283,-200.0,0.00039199,120]
[381384133,1756174240292,-500.0,0.00039301,5]
[381384134,1756174240301,-1198.98427622,0.00039334,2]
[381384135,1756174240311,-151.0,0.00039335,30]
[381384136,1756174240320,-195.321254,0.00039335,30]
[381384137,1756174240330,-162.173328,0.00039335,30]
[381384138,1756174240340,-151.0,0.00039335,30]
[381384139,1756174240349,-151.0,0.00039335,30]
[381384140,1756174240358,-151.0,0.00039335,30]
[381384141,1756174240368,-151.0,0.00039335,30]
[381384142,1756174240379,-151.0,0.00039335,30]
[381384143,1756174240388,-151.0,0.00039335,30]
[381384144,1756174240398,-292.985322,0.00039335,30]
[381384145,1756174240407,-154.767757,0.00039335,30]
[381384146,1756174240417,-168.0,0.0003936,2]
[381384147,1756174240427,-168.0,0.00039419,7]
[381384148,1756174240437,-1339.37,0.00039452,120]
[381384149,1756174240446,-906.75318524,0.00039507,2]
[381384150,1756174240455,-168.0,0.00039521,2]
[381384151,1756174240466,-232.4766599,0.00039567,2]
[381384152,1756174240475,-160.0,0.00039571,2]
[381384153,1756174240485,-160.0,0.00039571,2]
[381384154,1756174240494,-217.12848614,0.00039571,2]
[381384155,1756174240504,-844.86965257,0.00039571,2]
[381384156,1756174240514,-151.0,0.00039607,30]